Workbook

Sheet Dashboard
N1: =BudgetNavn&" INTERAKTIVT BUDGET" -> FAMILIEN JOHNSON 2012 INTERAKTIVT BUDGET
A3: =diagramdata!C38 -> kr. 4,000
D5: indkomst
A7: =diagramdata!C39 -> kr. 5,933
D9: udgifter
A11: =diagramdata!D40& "kr. "&diagramdata!C40 -> -kr. 1933
D13: pengestrøm

Sheet Budget
C1: jan | D1: feb | E1: mar | F1: apr | G1: maj | H1: jun | I1: jul | J1: aug | K1: sep | L1: okt | M1: nov | N1: dec | O1: år | P1: gns.
B5: Startsaldo | C5: 1000
B6: Samlet indkomst | C6: =SUM(tblIndkomst[jan]) -> 4222 | D6: =SUM(tblIndkomst[feb]) -> 9033 | E6: =SUM(tblIndkomst[mar]) -> 4000 | F6: =SUM(tblIndkomst[apr]) -> 4045 | G6: =SUM(tblIndkomst[maj]) -> 9000 | H6: =SUM(tblIndkomst[jun]) -> 1525 | I6: =SUM(tblIndkomst[jul]) -> 1500 | J6: =SUM(tblIndkomst[aug]) -> 6500 | K6: =SUM(tblIndkomst[sep]) -> 4000 | L6: =SUM(tblIndkomst[okt]) -> 4000 | M6: =SUM(tblIndkomst[nov]) -> 9000 | N6: =SUM(tblIndkomst[dec]) -> 4000 | O6: =SUM(tblIndkomst[år]) -> 60825 | P6: =O6/12 -> 5069
B7: Samlede udgifter | C7: =SUM(tblUdgiftskategori_01[jan],tblUdgiftskategori_02[jan],tblUdgiftskategori_03[jan],tblUdgiftskategori_04[jan],tblUdgiftskategori_05[jan],tblUdgiftskategori_06[jan],tblUdgiftskategori_07[jan],tblUdgiftskategori_08[jan],tblUdgiftskategori_09[jan],tblUdgiftskategori_10[jan],tblUdgiftskategori_11[jan],tblUdgiftskategori_12[jan],tblUdgiftskategori_13[jan],tblUdgiftskategori_14[jan],tblUdgiftskategori_15[jan]) -> 7936 | D7: =SUM(tblUdgiftskategori_01[feb],tblUdgiftskategori_02[feb],tblUdgiftskategori_03[feb],tblUdgiftskategori_04[feb],tblUdgiftskategori_05[feb],tblUdgiftskategori_06[feb],tblUdgiftskategori_07[feb],tblUdgiftskategori_08[feb],tblUdgiftskategori_09[feb],tblUdgiftskategori_10[feb],tblUdgiftskategori_11[feb],tblUdgiftskategori_12[feb],tblUdgiftskategori_13[feb],tblUdgiftskategori_14[feb],tblUdgiftskategori_15[feb]) -> 5243 | E7: =SUM(tblUdgiftskategori_01[mar],tblUdgiftskategori_02[mar],tblUdgiftskategori_03[mar],tblUdgiftskategori_04[mar],tblUdgiftskategori_05[mar],tblUdgiftskategori_06[mar],tblUdgiftskategori_07[mar],tblUdgiftskategori_08[mar],tblUdgiftskategori_09[mar],tblUdgiftskategori_10[mar],tblUdgiftskategori_11[mar],tblUdgiftskategori_12[mar],tblUdgiftskategori_13[mar],tblUdgiftskategori_14[mar],tblUdgiftskategori_15[mar]) -> 5933 | F7: =SUM(tblUdgiftskategori_01[apr],tblUdgiftskategori_02[apr],tblUdgiftskategori_03[apr],tblUdgiftskategori_04[apr],tblUdgiftskategori_05[apr],tblUdgiftskategori_06[apr],tblUdgiftskategori_07[apr],tblUdgiftskategori_08[apr],tblUdgiftskategori_09[apr],tblUdgiftskategori_10[apr],tblUdgiftskategori_11[apr],tblUdgiftskategori_12[apr],tblUdgiftskategori_13[apr],tblUdgiftskategori_14[apr],tblUdgiftskategori_15[apr]) -> 5858 | G7: =SUM(tblUdgiftskategori_01[maj],tblUdgiftskategori_02[maj],tblUdgiftskategori_03[maj],tblUdgiftskategori_04[maj],tblUdgiftskategori_05[maj],tblUdgiftskategori_06[maj],tblUdgiftskategori_07[maj],tblUdgiftskategori_08[maj],tblUdgiftskategori_09[maj],tblUdgiftskategori_10[maj],tblUdgiftskategori_11[maj],tblUdgiftskategori_12[maj],tblUdgiftskategori_13[maj],tblUdgiftskategori_14[maj],tblUdgiftskategori_15[maj]) -> 5468 | H7: =SUM(tblUdgiftskategori_01[jun],tblUdgiftskategori_02[jun],tblUdgiftskategori_03[jun],tblUdgiftskategori_04[jun],tblUdgiftskategori_05[jun],tblUdgiftskategori_06[jun],tblUdgiftskategori_07[jun],tblUdgiftskategori_08[jun],tblUdgiftskategori_09[jun],tblUdgiftskategori_10[jun],tblUdgiftskategori_11[jun],tblUdgiftskategori_12[jun],tblUdgiftskategori_13[jun],tblUdgiftskategori_14[jun],tblUdgiftskategori_15[jun]) -> 5118 | I7: =SUM(tblUdgiftskategori_01[jul],tblUdgiftskategori_02[jul],tblUdgiftskategori_03[jul],tblUdgiftskategori_04[jul],tblUdgiftskategori_05[jul],tblUdgiftskategori_06[jul],tblUdgiftskategori_07[jul],tblUdgiftskategori_08[jul],tblUdgiftskategori_09[jul],tblUdgiftskategori_10[jul],tblUdgiftskategori_11[jul],tblUdgiftskategori_12[jul],tblUdgiftskategori_13[jul],tblUdgiftskategori_14[jul],tblUdgiftskategori_15[jul]) -> 5743 | J7: =SUM(tblUdgiftskategori_01[aug],tblUdgiftskategori_02[aug],tblUdgiftskategori_03[aug],tblUdgiftskategori_04[aug],tblUdgiftskategori_05[aug],tblUdgiftskategori_06[aug],tblUdgiftskategori_07[aug],tblUdgiftskategori_08[aug],tblUdgiftskategori_09[aug],tblUdgiftskategori_10[aug],tblUdgiftskategori_11[aug],tblUdgiftskategori_12[aug],tblUdgiftskategori_13[aug],tblUdgiftskategori_14[aug],tblUdgiftskategori_15[aug]) -> 5353 | K7: =SUM(tblUdgiftskategori_01[sep],tblUdgiftskategori_02[sep],tblUdgiftskategori_03[sep],tblUdgiftskategori_04[sep],tblUdgiftskategori_05[sep],tblUdgiftskategori_06[sep],tblUdgiftskategori_07[sep],tblUdgiftskategori_08[sep],tblUdgiftskategori_09[sep],tblUdgiftskategori_10[sep],tblUdgiftskategori_11[sep],tblUdgiftskategori_12[sep],tblUdgiftskategori_13[sep],tblUdgiftskategori_14[sep],tblUdgiftskategori_15[sep]) -> 5983 | L7: =SUM(tblUdgiftskategori_01[okt],tblUdgiftskategori_02[okt],tblUdgiftskategori_03[okt],tblUdgiftskategori_04[okt],tblUdgiftskategori_05[okt],tblUdgiftskategori_06[okt],tblUdgiftskategori_07[okt],tblUdgiftskategori_08[okt],tblUdgiftskategori_09[okt],tblUdgiftskategori_10[okt],tblUdgiftskategori_11[okt],tblUdgiftskategori_12[okt],tblUdgiftskategori_13[okt],tblUdgiftskategori_14[okt],tblUdgiftskategori_15[okt]) -> 5943 | M7: =SUM(tblUdgiftskategori_01[nov],tblUdgiftskategori_02[nov],tblUdgiftskategori_03[nov],tblUdgiftskategori_04[nov],tblUdgiftskategori_05[nov],tblUdgiftskategori_06[nov],tblUdgiftskategori_07[nov],tblUdgiftskategori_08[nov],tblUdgiftskategori_09[nov],tblUdgiftskategori_10[nov],tblUdgiftskategori_11[nov],tblUdgiftskategori_12[nov],tblUdgiftskategori_13[nov],tblUdgiftskategori_14[nov],tblUdgiftskategori_15[nov]) -> 5058 | N7: =SUM(tblUdgiftskategori_01[dec],tblUdgiftskategori_02[dec],tblUdgiftskategori_03[dec],tblUdgiftskategori_04[dec],tblUdgiftskategori_05[dec],tblUdgiftskategori_06[dec],tblUdgiftskategori_07[dec],tblUdgiftskategori_08[dec],tblUdgiftskategori_09[dec],tblUdgiftskategori_10[dec],tblUdgiftskategori_11[dec],tblUdgiftskategori_12[dec],tblUdgiftskategori_13[dec],tblUdgiftskategori_14[dec],tblUdgiftskategori_15[dec]) -> 4958 | O7: =SUM(tblUdgiftskategori_01[år],tblUdgiftskategori_02[år],tblUdgiftskategori_03[år],tblUdgiftskategori_04[år],tblUdgiftskategori_05[år],tblUdgiftskategori_06[år],tblUdgiftskategori_07[år],tblUdgiftskategori_08[år],tblUdgiftskategori_09[år],tblUdgiftskategori_10[år],tblUdgiftskategori_11[år],tblUdgiftskategori_12[år],tblUdgiftskategori_13[år],tblUdgiftskategori_14[år],tblUdgiftskategori_15[år]) -> 68594 | P7: =O7/12 -> 5716
B8: Nettoindkomst | C8: =C6-C7 -> -3714 | D8: =D6-D7 -> 3790 | E8: -1933 | F8: -1813 | G8: 3532 | H8: -3593 | I8: -4243 | J8: 1147 | K8: -1983 | L8: -1943 | M8: 3942 | N8: -958 | O8: -7769 | P8: =O8/12 -> -647
B9: SAMLET PENGESTRØM | C9: =C5+C6-C7 -> -2714 | D9: =C9+D6-D7 -> 1076 | E9: =D9+E6-E7 -> -857 | F9: -2670 | G9: 862 | H9: -2731 | I9: -6974 | J9: -5827 | K9: -7810 | L9: -9753 | M9: -5811 | N9: -6769
B12: indkomst
B13: Lønninger og tip | C13: 4000 | D13: 4000 | E13: 4000 | F13: 4000 | G13: 4000 | H13: 1000 | I13: 1000 | J13: 1000 | K13: 4000 | L13: 4000 | M13: 4000 | N13: 4000 | O13: =SUM(tblIndkomst[[#This Row],[jan]:[dec]]) -> 39000 | P13: =tblIndkomst[[#This Row],[år]]/12 -> 3250
B14: Renteindtægter | C14: 222 | D14: 33 | F14: 45 | H14: 25 | O14: =SUM(tblIndkomst[[#This Row],[jan]:[dec]]) -> 325 | P14: =tblIndkomst[[#This Row],[år]]/12 -> 27
B15: Dividender | D15: 5000 | G15: 5000 | J15: 5000 | M15: 5000 | O15: =SUM(tblIndkomst[[#This Row],[jan]:[dec]]) -> 20000 | P15: =tblIndkomst[[#This Row],[år]]/12 -> 1667
B16: refusion/godtgørelse | H16: 500 | I16: 500 | J16: 500 | O16: =SUM(tblIndkomst[[#This Row],[jan]:[dec]]) -> 1500 | P16: =tblIndkomst[[#This Row],[år]]/12 -> 125
B17: Andet | O17: =SUM(tblIndkomst[[#This Row],[jan]:[dec]]) -> 0 | P17: =tblIndkomst[[#This Row],[år]]/12 -> 0
B18: SAMLET INDKOMST | C18: =SUM(tblIndkomst[jan]) -> 4222 | D18: =SUM(tblIndkomst[feb]) -> 9033 | E18: =SUM(tblIndkomst[mar]) -> 4000 | F18: =SUM(tblIndkomst[apr]) -> 4045 | G18: =SUM(tblIndkomst[maj]) -> 9000 | H18: =SUM(tblIndkomst[jun]) -> 1525 | I18: =SUM(tblIndkomst[jul]) -> 1500 | J18: =SUM(tblIndkomst[aug]) -> 6500 | K18: =SUM(tblIndkomst[sep]) -> 4000 | L18: =SUM(tblIndkomst[okt]) -> 4000 | M18: =SUM(tblIndkomst[nov]) -> 9000 | N18: =SUM(tblIndkomst[dec]) -> 4000 | O18: =SUM(tblIndkomst[år]) -> 60825 | P18: =tblIndkomst[[#Totals],[år]]/12 -> 5069
B21: hjem
B22: Prioritetslån/leje | C22: 850 | D22: 850 | E22: 850 | F22: 850 | G22: 850 | H22: 850 | I22: 850 | J22: 850 | K22: 850 | L22: 850 | M22: 900 | N22: 900 | O22: =SUM(tblUdgiftskategori_01[[#This Row],[jan]:[dec]]) -> 10300 | P22: =tblUdgiftskategori_01[[#This Row],[år]]/12 -> 858
B23: Elektricitet | C23: 200 | D23: 200 | E23: 175 | F23: 150 | G23: 150 | H23: 175 | I23: 225 | J23: 275 | K23: 200 | L23: 150 | M23: 150 | N23: 150 | O23: =SUM(tblUdgiftskategori_01[[#This Row],[jan]:[dec]]) -> 2200 | P23: =tblUdgiftskategori_01[[#This Row],[år]]/12 -> 183
B24: Telefon | C24: 50 | D24: 50 | E24: 100 | F24: 100 | G24: 50 | H24: 50 | I24: 100 | J24: 100 | K24: 50 | L24: 50 | M24: 50 | N24: 50 | O24: =SUM(tblUdgiftskategori_01[[#This Row],[jan]:[dec]]) -> 800 | P24: =tblUdgiftskategori_01[[#This Row],[år]]/12 -> 67
B25: Kabel/satellit | C25: 69 | D25: 69 | E25: 69 | F25: 69 | G25: 69 | H25: 69 | I25: 69 | J25: 69 | K25: 69 | L25: 69 | M25: 69 | N25: 69 | O25: =SUM(tblUdgiftskategori_01[[#This Row],[jan]:[dec]]) -> 828 | P25: =tblUdgiftskategori_01[[#This Row],[år]]/12 -> 69
B26: Internet | C26: 39 | D26: 39 | E26: 39 | F26: 39 | G26: 39 | H26: 39 | I26: 39 | J26: 39 | K26: 39 | L26: 39 | M26: 39 | N26: 39 | O26: =SUM(tblUdgiftskategori_01[[#This Row],[jan]:[dec]]) -> 468 | P26: =tblUdgiftskategori_01[[#This Row],[år]]/12 -> 39
B27: =UPPER("Total " & B21) -> TOTAL HJEM | C27: =SUM(tblUdgiftskategori_01[jan]) -> 1208 | D27: =SUM(tblUdgiftskategori_01[feb]) -> 1208 | E27: =SUM(tblUdgiftskategori_01[mar]) -> 1233 | F27: =SUM(tblUdgiftskategori_01[apr]) -> 1208 | G27: =SUM(tblUdgiftskategori_01[maj]) -> 1158 | H27: =SUM(tblUdgiftskategori_01[jun]) -> 1183 | I27: =SUM(tblUdgiftskategori_01[jul]) -> 1283 | J27: =SUM(tblUdgiftskategori_01[aug]) -> 1333 | K27: =SUM(tblUdgiftskategori_01[sep]) -> 1208 | L27: =SUM(tblUdgiftskategori_01[okt]) -> 1158 | M27: =SUM(tblUdgiftskategori_01[nov]) -> 1208 | N27: =SUM(tblUdgiftskategori_01[dec]) -> 1208 | O27: =SUM(tblUdgiftskategori_01[år]) -> 14596 | P27: =tblUdgiftskategori_01[[#Totals],[år]]/12 -> 1216
B30: dagligt forbrug
B31: Dagligvarer | C31: 345 | D31: 250 | E31: 200 | F31: 400 | G31: 350 | H31: 250 | I31: 400 | J31: 350 | K31: 250 | L31: 400 | M31: 350 | N31: 250 | O31: =SUM(tblUdgiftskategori_02[[#This Row],[jan]:[dec]]) -> 3795 | P31: =tblUdgiftskategori_02[[#This Row],[år]]/12 -> 316
B32: Beklædning | C32: 300 | F32: 300 | I32: 300 | L32: 300 | O32: =SUM(tblUdgiftskategori_02[[#This Row],[jan]:[dec]]) -> 1200 | P32: =tblUdgiftskategori_02[[#This Row],[år]]/12 -> 100
B33: Restaurantbesøg | C33: 125 | D33: 125 | E33: 300 | F33: 125 | G33: 125 | H33: 200 | I33: 125 | J33: 125 | K33: 125 | L33: 125 | M33: 125 | N33: 125 | O33: =SUM(tblUdgiftskategori_02[[#This Row],[jan]:[dec]]) -> 1750 | P33: =tblUdgiftskategori_02[[#This Row],[år]]/12 -> 146
B34: Frisør/barber | C34: 25 | E34: 50 | G34: 25 | I34: 50 | K34: 25 | M34: 100 | O34: =SUM(tblUdgiftskategori_02[[#This Row],[jan]:[dec]]) -> 275 | P34: =tblUdgiftskategori_02[[#This Row],[år]]/12 -> 23
B35: Andet | O35: =SUM(tblUdgiftskategori_02[[#This Row],[jan]:[dec]]) -> 0 | P35: =tblUdgiftskategori_02[[#This Row],[år]]/12 -> 0
B36: =UPPER("Total " & B30) -> TOTAL DAGLIGT FORBRUG | C36: =SUM(tblUdgiftskategori_02[jan]) -> 795 | D36: =SUM(tblUdgiftskategori_02[feb]) -> 375 | E36: =SUM(tblUdgiftskategori_02[mar]) -> 550 | F36: =SUM(tblUdgiftskategori_02[apr]) -> 825 | G36: =SUM(tblUdgiftskategori_02[maj]) -> 500 | H36: =SUM(tblUdgiftskategori_02[jun]) -> 450 | I36: =SUM(tblUdgiftskategori_02[jul]) -> 875 | J36: =SUM(tblUdgiftskategori_02[aug]) -> 475 | K36: =SUM(tblUdgiftskategori_02[sep]) -> 400 | L36: =SUM(tblUdgiftskategori_02[okt]) -> 825 | M36: =SUM(tblUdgiftskategori_02[nov]) -> 575 | N36: =SUM(tblUdgiftskategori_02[dec]) -> 375 | O36: =SUM(tblUdgiftskategori_02[år]) -> 7020 | P36: =tblUdgiftskategori_02[[#Totals],[år]]/12 -> 585
B40: børn
B41: Skoletilbehør | C41: 123 | E41: 100 | J41: 345 | O41: =SUM(tblUdgiftskategori_03[[#This Row],[jan]:[dec]]) -> 568 | P41: =tblUdgiftskategori_03[[#This Row],[år]]/12 -> 47
B42: Beklædning | D42: 100 | G42: 100 | K42: 100 | N42: 100 | O42: =SUM(tblUdgiftskategori_03[[#This Row],[jan]:[dec]]) -> 400 | P42: =tblUdgiftskategori_03[[#This Row],[år]]/12 -> 33
B43: skolofrokostordning | C43: 50 | D43: 50 | E43: 50 | F43: 50 | G43: 50 | H43: 50 | K43: 50 | L43: 50 | M43: 50 | N43: 50 | O43: =SUM(tblUdgiftskategori_03[[#This Row],[jan]:[dec]]) -> 500 | P43: =tblUdgiftskategori_03[[#This Row],[år]]/12 -> 42
B44: Medicin | C44: 200 | D44: 200 | E44: 200 | F44: 200 | G44: 200 | H44: 200 | I44: 200 | J44: 200 | K44: 200 | L44: 200 | M44: 200 | N44: 200 | O44: =SUM(tblUdgiftskategori_03[[#This Row],[jan]:[dec]]) -> 2400 | P44: =tblUdgiftskategori_03[[#This Row],[år]]/12 -> 200
B45: Andet | C45: 2000 | D45: 150 | H45: 200 | L45: 100 | O45: =SUM(tblUdgiftskategori_03[[#This Row],[jan]:[dec]]) -> 2450 | P45: =tblUdgiftskategori_03[[#This Row],[år]]/12 -> 204
B46: =UPPER("Total " & B40) -> TOTAL BØRN | C46: =SUM(tblUdgiftskategori_03[jan]) -> 2373 | D46: =SUM(tblUdgiftskategori_03[feb]) -> 500 | E46: =SUM(tblUdgiftskategori_03[mar]) -> 350 | F46: =SUM(tblUdgiftskategori_03[apr]) -> 250 | G46: =SUM(tblUdgiftskategori_03[maj]) -> 350 | H46: =SUM(tblUdgiftskategori_03[jun]) -> 450 | I46: =SUM(tblUdgiftskategori_03[jul]) -> 200 | J46: =SUM(tblUdgiftskategori_03[aug]) -> 545 | K46: =SUM(tblUdgiftskategori_03[sep]) -> 350 | L46: =SUM(tblUdgiftskategori_03[okt]) -> 350 | M46: =SUM(tblUdgiftskategori_03[nov]) -> 250 | N46: =SUM(tblUdgiftskategori_03[dec]) -> 350 | O46: =SUM(tblUdgiftskategori_03[år]) -> 6318 | P46: =tblUdgiftskategori_03[[#Totals],[år]]/12 -> 527
B49: transport
B50: Afbetaling på bil | C50: 600 | D50: 600 | E50: 600 | F50: 600 | G50: 600 | H50: 600 | I50: 600 | J50: 600 | K50: 600 | L50: 600 | M50: 600 | N50: 600 | O50: =SUM(tblUdgiftskategori_04[[#This Row],[jan]:[dec]]) -> 7200 | P50: =tblUdgiftskategori_04[[#This Row],[år]]/12 -> 600
B51: Brændstof | C51: 325 | D51: 325 | E51: 325 | F51: 325 | G51: 325 | H51: 500 | I51: 500 | J51: 500 | K51: 325 | L51: 325 | M51: 325 | N51: 325 | O51: =SUM(tblUdgiftskategori_04[[#This Row],[jan]:[dec]]) -> 4425 | P51: =tblUdgiftskategori_04[[#This Row],[år]]/12 -> 369
B52: Reparationer | D52: 100 | F52: 100 | H52: 100 | J52: 100 | L52: 100 | O52: =SUM(tblUdgiftskategori_04[[#This Row],[jan]:[dec]]) -> 500 | P52: =tblUdgiftskategori_04[[#This Row],[år]]/12 -> 42
B53: Registrerings-/vægtafgift | C53: 185 | K53: 225 | O53: =SUM(tblUdgiftskategori_04[[#This Row],[jan]:[dec]]) -> 410 | P53: =tblUdgiftskategori_04[[#This Row],[år]]/12 -> 34
B54: Andet | G54: 400 | O54: =SUM(tblUdgiftskategori_04[[#This Row],[jan]:[dec]]) -> 400 | P54: =tblUdgiftskategori_04[[#This Row],[år]]/12 -> 33
B55: =UPPER("Total " & B49) -> TOTAL TRANSPORT | C55: =SUM(tblUdgiftskategori_04[jan]) -> 1110 | D55: =SUM(tblUdgiftskategori_04[feb]) -> 1025 | E55: =SUM(tblUdgiftskategori_04[mar]) -> 925 | F55: =SUM(tblUdgiftskategori_04[apr]) -> 1025 | G55: =SUM(tblUdgiftskategori_04[maj]) -> 1325 | H55: =SUM(tblUdgiftskategori_04[jun]) -> 1200 | I55: =SUM(tblUdgiftskategori_04[jul]) -> 1100 | J55: =SUM(tblUdgiftskategori_04[aug]) -> 1200 | K55: =SUM(tblUdgiftskategori_04[sep]) -> 1150 | L55: =SUM(tblUdgiftskategori_04[okt]) -> 1025 | M55: =SUM(tblUdgiftskategori_04[nov]) -> 925 | N55: =SUM(tblUdgiftskategori_04[dec]) -> 925 | O55: =SUM(tblUdgiftskategori_04[år]) -> 12935 | P55: =tblUdgiftskategori_04[[#Totals],[år]]/12 -> 1078
B58: sundhed
B59: Læge/tandlæge | D59: 35 | G59: 35 | H59: 35 | I59: 35 | L59: 35 | O59: =SUM(tblUdgiftskategori_05[[#This Row],[jan]:[dec]]) -> 175 | P59: =tblUdgiftskategori_05[[#This Row],[år]]/12 -> 15
B60: Medicin | C60: 25 | D60: 25 | E60: 25 | F60: 25 | G60: 25 | H60: 25 | I60: 25 | J60: 25 | K60: 25 | L60: 25 | M60: 25 | N60: 25 | O60: =SUM(tblUdgiftskategori_05[[#This Row],[jan]:[dec]]) -> 300 | P60: =tblUdgiftskategori_05[[#This Row],[år]]/12 -> 25
B61: Andet | E61: 150 | K61: 150 | O61: =SUM(tblUdgiftskategori_05[[#This Row],[jan]:[dec]]) -> 300 | P61: =tblUdgiftskategori_05[[#This Row],[år]]/12 -> 25
B62: =UPPER("Total " & B58) -> TOTAL SUNDHED | C62: =SUM(tblUdgiftskategori_05[jan]) -> 25 | D62: =SUM(tblUdgiftskategori_05[feb]) -> 60 | E62: =SUM(tblUdgiftskategori_05[mar]) -> 175 | F62: =SUM(tblUdgiftskategori_05[apr]) -> 25 | G62: =SUM(tblUdgiftskategori_05[maj]) -> 60 | H62: =SUM(tblUdgiftskategori_05[jun]) -> 60 | I62: =SUM(tblUdgiftskategori_05[jul]) -> 60 | J62: =SUM(tblUdgiftskategori_05[aug]) -> 25 | K62: =SUM(tblUdgiftskategori_05[sep]) -> 175 | L62: =SUM(tblUdgiftskategori_05[okt]) -> 60 | M62: =SUM(tblUdgiftskategori_05[nov]) -> 25 | N62: =SUM(tblUdgiftskategori_05[dec]) -> 25 | O62: =SUM(tblUdgiftskategori_05[år]) -> 775 | P62: =tblUdgiftskategori_05[[#Totals],[år]]/12 -> 65
B65: forsikring
B66: Bilforsikring | C66: 150 | D66: 150 | E66: 150 | F66: 150 | G66: 150 | H66: 150 | I66: 150 | J66: 150 | K66: 150 | L66: 150 | M66: 150 | N66: 150 | O66: =SUM(tblUdgiftskategori_06[[#This Row],[jan]:[dec]]) -> 1800 | P66: =tblUdgiftskategori_06[[#This Row],[år]]/12 -> 150
B67: Sundhed | C67: 675 | D67: 675 | E67: 675 | F67: 675 | G67: 675 | H67: 675 | I67: 675 | J67: 675 | K67: 675 | L67: 675 | M67: 675 | N67: 675 | O67: =SUM(tblUdgiftskategori_06[[#This Row],[jan]:[dec]]) -> 8100 | P67: =tblUdgiftskategori_06[[#This Row],[år]]/12 -> 675
B68: Livsforsikring | C68: 150 | D68: 150 | E68: 150 | F68: 150 | G68: 150 | H68: 150 | I68: 150 | J68: 150 | K68: 150 | L68: 150 | M68: 150 | N68: 150 | O68: =SUM(tblUdgiftskategori_06[[#This Row],[jan]:[dec]]) -> 1800 | P68: =tblUdgiftskategori_06[[#This Row],[år]]/12 -> 150
B69: =UPPER("Total " & B65) -> TOTAL FORSIKRING | C69: =SUM(tblUdgiftskategori_06[jan]) -> 975 | D69: =SUM(tblUdgiftskategori_06[feb]) -> 975 | E69: =SUM(tblUdgiftskategori_06[mar]) -> 975 | F69: =SUM(tblUdgiftskategori_06[apr]) -> 975 | G69: =SUM(tblUdgiftskategori_06[maj]) -> 975 | H69: =SUM(tblUdgiftskategori_06[jun]) -> 975 | I69: =SUM(tblUdgiftskategori_06[jul]) -> 975 | J69: =SUM(tblUdgiftskategori_06[aug]) -> 975 | K69: =SUM(tblUdgiftskategori_06[sep]) -> 975 | L69: =SUM(tblUdgiftskategori_06[okt]) -> 975 | M69: =SUM(tblUdgiftskategori_06[nov]) -> 975 | N69: =SUM(tblUdgiftskategori_06[dec]) -> 975 | O69: =SUM(tblUdgiftskategori_06[år]) -> 11700 | P69: =tblUdgiftskategori_06[[#Totals],[år]]/12 -> 975
B72: uddannelse
B73: Undervisningsgebyr | E73: 400 | K73: 400 | O73: =SUM(tblUdgiftskategori_07[[#This Row],[jan]:[dec]]) -> 800 | P73: =tblUdgiftskategori_07[[#This Row],[år]]/12 -> 67
B74: Bøger | E74: 225 | K74: 225 | O74: =SUM(tblUdgiftskategori_07[[#This Row],[jan]:[dec]]) -> 450 | P74: =tblUdgiftskategori_07[[#This Row],[år]]/12 -> 38
B75: Andet | O75: =SUM(tblUdgiftskategori_07[[#This Row],[jan]:[dec]]) -> 0 | P75: =tblUdgiftskategori_07[[#This Row],[år]]/12 -> 0
B76: =UPPER("Total " & B72) -> TOTAL UDDANNELSE | C76: =SUM(tblUdgiftskategori_07[jan]) -> 0 | D76: =SUM(tblUdgiftskategori_07[feb]) -> 0 | E76: =SUM(tblUdgiftskategori_07[mar]) -> 625 | F76: =SUM(tblUdgiftskategori_07[apr]) -> 0 | G76: =SUM(tblUdgiftskategori_07[maj]) -> 0 | H76: =SUM(tblUdgiftskategori_07[jun]) -> 0 | I76: =SUM(tblUdgiftskategori_07[jul]) -> 0 | J76: =SUM(tblUdgiftskategori_07[aug]) -> 0 | K76: =SUM(tblUdgiftskategori_07[sep]) -> 625 | L76: =SUM(tblUdgiftskategori_07[okt]) -> 0 | M76: =SUM(tblUdgiftskategori_07[nov]) -> 0 | N76: =SUM(tblUdgiftskategori_07[dec]) -> 0 | O76: =SUM(tblUdgiftskategori_07[år]) -> 1250 | P76: =tblUdgiftskategori_07[[#Totals],[år]]/12 -> 104
B79: velgørenhed
B80: Gaver | D80: 100 | H80: 100 | L80: 100 | O80: =SUM(tblUdgiftskategori_08[[#This Row],[jan]:[dec]]) -> 300 | P80: =tblUdgiftskategori_08[[#This Row],[år]]/12 -> 25
B81: Donationer til velgørenhed | E81: 100 | G81: 100 | I81: 100 | K81: 100 | M81: 100 | O81: =SUM(tblUdgiftskategori_08[[#This Row],[jan]:[dec]]) -> 500 | P81: =tblUdgiftskategori_08[[#This Row],[år]]/12 -> 42
B82: Andet | F82: 100 | J82: 100 | N82: 100 | O82: =SUM(tblUdgiftskategori_08[[#This Row],[jan]:[dec]]) -> 300 | P82: =tblUdgiftskategori_08[[#This Row],[år]]/12 -> 25
B83: =UPPER("Total " & B79) -> TOTAL VELGØRENHED | C83: =SUM(tblUdgiftskategori_08[jan]) -> 0 | D83: =SUM(tblUdgiftskategori_08[feb]) -> 100 | E83: =SUM(tblUdgiftskategori_08[mar]) -> 100 | F83: =SUM(tblUdgiftskategori_08[apr]) -> 100 | G83: =SUM(tblUdgiftskategori_08[maj]) -> 100 | H83: =SUM(tblUdgiftskategori_08[jun]) -> 100 | I83: =SUM(tblUdgiftskategori_08[jul]) -> 100 | J83: =SUM(tblUdgiftskategori_08[aug]) -> 100 | K83: =SUM(tblUdgiftskategori_08[sep]) -> 100 | L83: =SUM(tblUdgiftskategori_08[okt]) -> 100 | M83: =SUM(tblUdgiftskategori_08[nov]) -> 100 | N83: =SUM(tblUdgiftskategori_08[dec]) -> 100 | O83: =SUM(tblUdgiftskategori_08[år]) -> 1100 | P83: =tblUdgiftskategori_08[[#Totals],[år]]/12 -> 92
B86: opsparing
B87: Katastrofefond | C87: 100 | D87: 100 | E87: 100 | F87: 100 | G87: 100 | K87: 100 | L87: 100 | M87: 100 | N87: 100 | O87: =SUM(tblUdgiftskategori_09[[#This Row],[jan]:[dec]]) -> 900 | P87: =tblUdgiftskategori_09[[#This Row],[år]]/12 -> 75
B88: Pension (401k, SKAT) | C88: 500 | D88: 500 | E88: 500 | F88: 500 | G88: 500 | H88: 500 | I88: 500 | J88: 500 | K88: 500 | L88: 500 | M88: 500 | N88: 500 | O88: =SUM(tblUdgiftskategori_09[[#This Row],[jan]:[dec]]) -> 6000 | P88: =tblUdgiftskategori_09[[#This Row],[år]]/12 -> 500
B89: Overfør til opsparing | C89: 200 | D89: 200 | E89: 200 | F89: 200 | G89: 200 | K89: 200 | L89: 200 | M89: 200 | N89: 200 | O89: =SUM(tblUdgiftskategori_09[[#This Row],[jan]:[dec]]) -> 1800 | P89: =tblUdgiftskategori_09[[#This Row],[år]]/12 -> 150
B90: =UPPER("Total " & B86) -> TOTAL OPSPARING | C90: =SUM(tblUdgiftskategori_09[jan]) -> 800 | D90: =SUM(tblUdgiftskategori_09[feb]) -> 800 | E90: =SUM(tblUdgiftskategori_09[mar]) -> 800 | F90: =SUM(tblUdgiftskategori_09[apr]) -> 800 | G90: =SUM(tblUdgiftskategori_09[maj]) -> 800 | H90: =SUM(tblUdgiftskategori_09[jun]) -> 500 | I90: =SUM(tblUdgiftskategori_09[jul]) -> 500 | J90: =SUM(tblUdgiftskategori_09[aug]) -> 500 | K90: =SUM(tblUdgiftskategori_09[sep]) -> 800 | L90: =SUM(tblUdgiftskategori_09[okt]) -> 800 | M90: =SUM(tblUdgiftskategori_09[nov]) -> 800 | N90: =SUM(tblUdgiftskategori_09[dec]) -> 800 | O90: =SUM(tblUdgiftskategori_09[år]) -> 8700 | P90: =tblUdgiftskategori_09[[#Totals],[år]]/12 -> 725
B93: gældsforpligtelser
B94: Kreditkort nr. 1 | C94: 145 | D94: 145 | E94: 145 | F94: 145 | G94: 145 | H94: 145 | I94: 145 | J94: 145 | K94: 145 | L94: 145 | M94: 145 | N94: 145 | O94: =SUM(tblUdgiftskategori_10[[#This Row],[jan]:[dec]]) -> 1740 | P94: =tblUdgiftskategori_10[[#This Row],[år]]/12 -> 145
B95: Skat, stat | C95: 450 | F95: 450 | I95: 450 | L95: 450 | O95: =SUM(tblUdgiftskategori_10[[#This Row],[jan]:[dec]]) -> 1800 | P95: =tblUdgiftskategori_10[[#This Row],[år]]/12 -> 150
B96: Studielån | C96: 55 | D96: 55 | E96: 55 | F96: 55 | G96: 55 | H96: 55 | I96: 55 | J96: 55 | K96: 55 | L96: 55 | M96: 55 | N96: 55 | O96: =SUM(tblUdgiftskategori_10[[#This Row],[jan]:[dec]]) -> 660 | P96: =tblUdgiftskategori_10[[#This Row],[år]]/12 -> 55
B97: =UPPER("Total " & B93) -> TOTAL GÆLDSFORPLIGTELSER | C97: =SUM(tblUdgiftskategori_10[jan]) -> 650 | D97: =SUM(tblUdgiftskategori_10[feb]) -> 200 | E97: =SUM(tblUdgiftskategori_10[mar]) -> 200 | F97: =SUM(tblUdgiftskategori_10[apr]) -> 650 | G97: =SUM(tblUdgiftskategori_10[maj]) -> 200 | H97: =SUM(tblUdgiftskategori_10[jun]) -> 200 | I97: =SUM(tblUdgiftskategori_10[jul]) -> 650 | J97: =SUM(tblUdgiftskategori_10[aug]) -> 200 | K97: =SUM(tblUdgiftskategori_10[sep]) -> 200 | L97: =SUM(tblUdgiftskategori_10[okt]) -> 650 | M97: =SUM(tblUdgiftskategori_10[nov]) -> 200 | N97: =SUM(tblUdgiftskategori_10[dec]) -> 200 | O97: =SUM(tblUdgiftskategori_10[år]) -> 4200 | P97: =tblUdgiftskategori_10[[#Totals],[år]]/12 -> 350
O101: =SUM(tblUdgiftskategori_11[[#This Row],[jan]:[dec]]) -> 0 | P101: =tblUdgiftskategori_11[[#This Row],[år]]/12 -> 0
O102: =SUM(tblUdgiftskategori_11[[#This Row],[jan]:[dec]]) -> 0 | P102: =tblUdgiftskategori_11[[#This Row],[år]]/12 -> 0
O103: =SUM(tblUdgiftskategori_11[[#This Row],[jan]:[dec]]) -> 0 | P103: =tblUdgiftskategori_11[[#This Row],[år]]/12 -> 0
B104: =UPPER("Total " & B100) -> TOTAL | C104: =SUM(tblUdgiftskategori_11[jan]) -> 0 | D104: =SUM(tblUdgiftskategori_11[feb]) -> 0 | E104: =SUM(tblUdgiftskategori_11[mar]) -> 0 | F104: =SUM(tblUdgiftskategori_11[apr]) -> 0 | G104: =SUM(tblUdgiftskategori_11[maj]) -> 0 | H104: =SUM(tblUdgiftskategori_11[jun]) -> 0 | I104: =SUM(tblUdgiftskategori_11[jul]) -> 0 | J104: =SUM(tblUdgiftskategori_11[aug]) -> 0 | K104: =SUM(tblUdgiftskategori_11[sep]) -> 0 | L104: =SUM(tblUdgiftskategori_11[okt]) -> 0 | M104: =SUM(tblUdgiftskategori_11[nov]) -> 0 | N104: =SUM(tblUdgiftskategori_11[dec]) -> 0 | O104: =SUM(tblUdgiftskategori_11[år]) -> 0 | P104: =O104/12 -> 0
O108: =SUM(tblUdgiftskategori_12[[#This Row],[jan]:[dec]]) -> 0 | P108: =tblUdgiftskategori_12[[#This Row],[år]]/12 -> 0
O109: =SUM(tblUdgiftskategori_12[[#This Row],[jan]:[dec]]) -> 0 | P109: =tblUdgiftskategori_12[[#This Row],[år]]/12 -> 0
O110: =SUM(tblUdgiftskategori_12[[#This Row],[jan]:[dec]]) -> 0 | P110: =tblUdgiftskategori_12[[#This Row],[år]]/12 -> 0
O111: 0 | P111: =tblUdgiftskategori_12[[#This Row],[år]]/12 -> 0
B112: =UPPER("Total " & B107) -> TOTAL | C112: =SUM(tblUdgiftskategori_12[jan]) -> 0 | D112: =SUM(tblUdgiftskategori_12[feb]) -> 0 | E112: =SUM(tblUdgiftskategori_12[mar]) -> 0 | F112: =SUM(tblUdgiftskategori_12[apr]) -> 0 | G112: =SUM(tblUdgiftskategori_12[maj]) -> 0 | H112: =SUM(tblUdgiftskategori_12[jun]) -> 0 | I112: =SUM(tblUdgiftskategori_12[jul]) -> 0 | J112: =SUM(tblUdgiftskategori_12[aug]) -> 0 | K112: =SUM(tblUdgiftskategori_12[sep]) -> 0 | L112: =SUM(tblUdgiftskategori_12[okt]) -> 0 | M112: =SUM(tblUdgiftskategori_12[nov]) -> 0 | N112: =SUM(tblUdgiftskategori_12[dec]) -> 0 | O112: =SUM(tblUdgiftskategori_12[år]) -> 0 | P112: =tblUdgiftskategori_12[[#Totals],[år]]/12 -> 0
O116: =SUM(tblUdgiftskategori_13[[#This Row],[jan]:[dec]]) -> 0 | P116: =tblUdgiftskategori_13[[#This Row],[år]]/12 -> 0
O117: =SUM(tblUdgiftskategori_13[[#This Row],[jan]:[dec]]) -> 0 | P117: =tblUdgiftskategori_13[[#This Row],[år]]/12 -> 0
O118: =SUM(tblUdgiftskategori_13[[#This Row],[jan]:[dec]]) -> 0 | P118: =tblUdgiftskategori_13[[#This Row],[år]]/12 -> 0
B119: =UPPER("Total " & B115) -> TOTAL | C119: =SUM(tblUdgiftskategori_13[jan]) -> 0 | D119: =SUM(tblUdgiftskategori_13[feb]) -> 0 | E119: =SUM(tblUdgiftskategori_13[mar]) -> 0 | F119: =SUM(tblUdgiftskategori_13[apr]) -> 0 | G119: =SUM(tblUdgiftskategori_13[maj]) -> 0 | H119: =SUM(tblUdgiftskategori_13[jun]) -> 0 | I119: =SUM(tblUdgiftskategori_13[jul]) -> 0 | J119: =SUM(tblUdgiftskategori_13[aug]) -> 0 | K119: =SUM(tblUdgiftskategori_13[sep]) -> 0 | L119: =SUM(tblUdgiftskategori_13[okt]) -> 0 | M119: =SUM(tblUdgiftskategori_13[nov]) -> 0 | N119: =SUM(tblUdgiftskategori_13[dec]) -> 0 | O119: =SUM(tblUdgiftskategori_13[år]) -> 0 | P119: =tblUdgiftskategori_13[[#Totals],[år]]/12 -> 0
O123: =SUM(tblUdgiftskategori_14[[#This Row],[jan]:[dec]]) -> 0 | P123: =tblUdgiftskategori_14[[#This Row],[år]]/12 -> 0
O124: =SUM(tblUdgiftskategori_14[[#This Row],[jan]:[dec]]) -> 0 | P124: =tblUdgiftskategori_14[[#This Row],[år]]/12 -> 0
O125: =SUM(tblUdgiftskategori_14[[#This Row],[jan]:[dec]]) -> 0 | P125: =tblUdgiftskategori_14[[#This Row],[år]]/12 -> 0
B126: =UPPER("Total " & B122) -> TOTAL | C126: =SUM(tblUdgiftskategori_14[jan]) -> 0 | D126: =SUM(tblUdgiftskategori_14[feb]) -> 0 | E126: =SUM(tblUdgiftskategori_14[mar]) -> 0 | F126: =SUM(tblUdgiftskategori_14[apr]) -> 0 | G126: =SUM(tblUdgiftskategori_14[maj]) -> 0 | H126: =SUM(tblUdgiftskategori_14[jun]) -> 0 | I126: =SUM(tblUdgiftskategori_14[jul]) -> 0 | J126: =SUM(tblUdgiftskategori_14[aug]) -> 0 | K126: =SUM(tblUdgiftskategori_14[sep]) -> 0 | L126: =SUM(tblUdgiftskategori_14[okt]) -> 0 | M126: =SUM(tblUdgiftskategori_14[nov]) -> 0 | N126: =SUM(tblUdgiftskategori_14[dec]) -> 0 | O126: =SUM(tblUdgiftskategori_14[år]) -> 0 | P126: =tblUdgiftskategori_14[[#Totals],[år]]/12 -> 0
O130: =SUM(tblUdgiftskategori_15[[#This Row],[jan]:[dec]]) -> 0 | P130: =tblUdgiftskategori_15[[#This Row],[år]]/12 -> 0
O131: =SUM(tblUdgiftskategori_15[[#This Row],[jan]:[dec]]) -> 0 | P131: =tblUdgiftskategori_15[[#This Row],[år]]/12 -> 0
O132: =SUM(tblUdgiftskategori_15[[#This Row],[jan]:[dec]]) -> 0 | P132: =tblUdgiftskategori_15[[#This Row],[år]]/12 -> 0
B133: =UPPER("Total " & B129) -> TOTAL | C133: =SUM(tblUdgiftskategori_15[jan]) -> 0 | D133: =SUM(tblUdgiftskategori_15[feb]) -> 0 | E133: =SUM(tblUdgiftskategori_15[mar]) -> 0 | F133: =SUM(tblUdgiftskategori_15[apr]) -> 0 | G133: =SUM(tblUdgiftskategori_15[maj]) -> 0 | H133: =SUM(tblUdgiftskategori_15[jun]) -> 0 | I133: =SUM(tblUdgiftskategori_15[jul]) -> 0 | J133: =SUM(tblUdgiftskategori_15[aug]) -> 0 | K133: =SUM(tblUdgiftskategori_15[sep]) -> 0 | L133: =SUM(tblUdgiftskategori_15[okt]) -> 0 | M133: =SUM(tblUdgiftskategori_15[nov]) -> 0 | N133: =SUM(tblUdgiftskategori_15[dec]) -> 0 | O133: =SUM(tblUdgiftskategori_15[år]) -> 0 | P133: =tblUdgiftskategori_15[[#Totals],[år]]/12 -> 0

Sheet Opsætning
B1: FAMILIEN JOHNSON 2012
B2: indkomst | D2: udgifter
B3: Lønninger og tip
B4: renteindtægter | D4: hjem | F4: hjem | H4: dagligt forbrug | J4: børn
B5: dividender | D5: dagligt forbrug | F5: prioritetslån/leje | H5: dagligvarer | J5: medicin
B6: gaver | D6: børn | F6: elektricitet | H6: personlig pleje | J6: beklædning
B7: refusion/godtgørelse | D7: transport | F7: benzin/olie | H7: beklædning | J7: undervisningsgebyr
B8: overførsel fra opsparing | D8: sundhed | F8: vand/kloak/affald | H8: rengøringstjenester | J8: skolofrokostordning
B9: andet | D9: forsikring | F9: telefon | H9: restaurantbesøg | J9: skoletilbehør
D10: uddannelse | F10: kabel/satellit | H10: renseri | J10: børnepasning
D11: velgørenhed | F11: internet | H11: frisør/barber | J11: legetøj/spil
D12: opsparing | F12: indretning/apparater | H12: andet | J12: andet
D13: gældsforpligtelser | F13: græsplæne/have
D14: underholdning | F14: isenkram til hjemmet
D15: kæledyr | F15: vedligeholdelse
D16: abonnementer | F16: forbedringer
D17: ferie | F17: andet
D18: diverse
F20: transport | H20: sundhed | J20: forsikring
F21: afbetaling på bil | H21: læge/tandlæge | J21: bilforsikring
F22: brændstof | H22: medicin | J22: sundhed
F23: bus/taxa/tog | H23: motioncenter | J23: indboforsikring
F24: reparationer | H24: nødstilfælde | J24: livsforsikring
F25: registrerings-/vægtafgift | H25: andet | J25: andet
F26: andet
F29: uddannelse | H29: velgørenhed | J29: opsparing
F30: undervisningsgebyr | H30: gaver | J30: katastrofefond
F31: bøger | H31: donationer til velgørenhed | J31: overfør til opsparing
F32: musiklektioner | H32: donationer til religiøse foretagender | J32: pension (401k, skat)
F33: andet | H33: andet | J33: investeringer
J34: universitet
J35: andet
F38: gældsforpligtelser | H38: underholdning | J38: kæledyr
F39: studielån | H39: video/dvd | J39: mad
F40: andre lån | H40: musik | J40: medicin
F41: kreditkort nr. 1 | H41: spil | J41: legetøj/tilbehør
F42: kreditkort nr. 2 | H42: leje | J42: andet
F43: kreditkort nr. 3 | H43: biograf/teater
F44: ægtefællebidrag/børnepenge | H44: koncerter/skuespil
F45: skat, stat | H45: bøger
F46: ejendomsskat | H46: hobbyer
F47: skat, region/kommune | H47: film/foto
F48: gebyr til boligejerforening | H48: sport
F49: advokatsalærer m.m. | H49: udendørsaktiviteter
F50: andet | H50: legetøj/gadgets
H51: andet
F53: abonnementer | H53: ferie | J53: diverse
F54: avis | H54: rejser | J54: bankgebyrer
F55: blade | H55: indkvartering | J55: porto
F56: kontingenter | H56: mad | J56: andet
F57: klubmedlemskaber | H57: billeje
F58: andet | H58: underholdning
H59: andet

Sheet diagramdata (hidden)
B1: *** Dette ark bør forblive skjult ***
B4: Periode | C4: 3
C6: jan | D6: feb | E6: mar | F6: apr | G6: maj | H6: jun | I6: jul | J6: aug | K6: sep | L6: okt | M6: nov | N6: dec | O6: år | P6: Gns.
B7: =LOWER(Budget!B129) ->  | C7: =SUM(tblUdgiftskategori_15[jan]) -> 0 | D7: =SUM(tblUdgiftskategori_15[feb]) -> 0 | E7: =SUM(tblUdgiftskategori_15[mar]) -> 0 | F7: =SUM(tblUdgiftskategori_15[apr]) -> 0 | G7: =SUM(tblUdgiftskategori_15[maj]) -> 0 | H7: =SUM(tblUdgiftskategori_15[jun]) -> 0 | I7: =SUM(tblUdgiftskategori_15[jul]) -> 0 | J7: =SUM(tblUdgiftskategori_15[aug]) -> 0 | K7: =SUM(tblUdgiftskategori_15[sep]) -> 0 | L7: =SUM(tblUdgiftskategori_15[okt]) -> 0 | M7: =SUM(tblUdgiftskategori_15[nov]) -> 0 | N7: =SUM(tblUdgiftskategori_15[dec]) -> 0 | O7: =SUM(tblUdgiftskategori_15[år]) -> 0 | P7: =SUM(tblUdgiftskategori_15[gns.]) -> 0
B8: =LOWER(Budget!B122) ->  | C8: =SUM(tblUdgiftskategori_14[jan]) -> 0 | D8: =SUM(tblUdgiftskategori_14[feb]) -> 0 | E8: =SUM(tblUdgiftskategori_14[mar]) -> 0 | F8: =SUM(tblUdgiftskategori_14[apr]) -> 0 | G8: =SUM(tblUdgiftskategori_14[maj]) -> 0 | H8: =SUM(tblUdgiftskategori_14[jun]) -> 0 | I8: =SUM(tblUdgiftskategori_14[jul]) -> 0 | J8: =SUM(tblUdgiftskategori_14[aug]) -> 0 | K8: =SUM(tblUdgiftskategori_14[sep]) -> 0 | L8: =SUM(tblUdgiftskategori_14[okt]) -> 0 | M8: =SUM(tblUdgiftskategori_14[nov]) -> 0 | N8: =SUM(tblUdgiftskategori_14[dec]) -> 0 | O8: =SUM(tblUdgiftskategori_14[år]) -> 0 | P8: =SUM(tblUdgiftskategori_15[gns.]) -> 0
B9: =LOWER(Budget!B115) ->  | C9: =SUM(tblUdgiftskategori_13[jan]) -> 0 | D9: =SUM(tblUdgiftskategori_13[feb]) -> 0 | E9: =SUM(tblUdgiftskategori_13[mar]) -> 0 | F9: =SUM(tblUdgiftskategori_13[apr]) -> 0 | G9: =SUM(tblUdgiftskategori_13[maj]) -> 0 | H9: =SUM(tblUdgiftskategori_13[jun]) -> 0 | I9: =SUM(tblUdgiftskategori_13[jul]) -> 0 | J9: =SUM(tblUdgiftskategori_13[aug]) -> 0 | K9: =SUM(tblUdgiftskategori_13[sep]) -> 0 | L9: =SUM(tblUdgiftskategori_13[okt]) -> 0 | M9: =SUM(tblUdgiftskategori_13[nov]) -> 0 | N9: =SUM(tblUdgiftskategori_13[dec]) -> 0 | O9: =SUM(tblUdgiftskategori_13[år]) -> 0 | P9: =SUM(tblUdgiftskategori_15[gns.]) -> 0
B10: =LOWER(Budget!B107) ->  | C10: =SUM(tblUdgiftskategori_12[jan]) -> 0 | D10: =SUM(tblUdgiftskategori_12[feb]) -> 0 | E10: =SUM(tblUdgiftskategori_12[mar]) -> 0 | F10: =SUM(tblUdgiftskategori_12[apr]) -> 0 | G10: =SUM(tblUdgiftskategori_12[maj]) -> 0 | H10: =SUM(tblUdgiftskategori_12[jun]) -> 0 | I10: =SUM(tblUdgiftskategori_12[jul]) -> 0 | J10: =SUM(tblUdgiftskategori_12[aug]) -> 0 | K10: =SUM(tblUdgiftskategori_12[sep]) -> 0 | L10: =SUM(tblUdgiftskategori_12[okt]) -> 0 | M10: =SUM(tblUdgiftskategori_12[nov]) -> 0 | N10: =SUM(tblUdgiftskategori_12[dec]) -> 0 | O10: =SUM(tblUdgiftskategori_12[år]) -> 0 | P10: =SUM(tblUdgiftskategori_15[gns.]) -> 0
B11: =LOWER(Budget!B100) ->  | C11: =SUM(tblUdgiftskategori_11[jan]) -> 0 | D11: =SUM(tblUdgiftskategori_11[feb]) -> 0 | E11: =SUM(tblUdgiftskategori_11[mar]) -> 0 | F11: =SUM(tblUdgiftskategori_11[apr]) -> 0 | G11: =SUM(tblUdgiftskategori_11[maj]) -> 0 | H11: =SUM(tblUdgiftskategori_11[jun]) -> 0 | I11: =SUM(tblUdgiftskategori_11[jul]) -> 0 | J11: =SUM(tblUdgiftskategori_11[aug]) -> 0 | K11: =SUM(tblUdgiftskategori_11[sep]) -> 0 | L11: =SUM(tblUdgiftskategori_11[okt]) -> 0 | M11: =SUM(tblUdgiftskategori_11[nov]) -> 0 | N11: =SUM(tblUdgiftskategori_11[dec]) -> 0 | O11: =SUM(tblUdgiftskategori_11[år]) -> 0 | P11: =SUM(tblUdgiftskategori_15[gns.]) -> 0
B12: =LOWER(Budget!B93) -> gældsforpligtelser | C12: =SUM(tblUdgiftskategori_10[jan]) -> 650 | D12: =SUM(tblUdgiftskategori_10[feb]) -> 200 | E12: =SUM(tblUdgiftskategori_10[mar]) -> 200 | F12: =SUM(tblUdgiftskategori_10[apr]) -> 650 | G12: =SUM(tblUdgiftskategori_10[maj]) -> 200 | H12: =SUM(tblUdgiftskategori_10[jun]) -> 200 | I12: =SUM(tblUdgiftskategori_10[jul]) -> 650 | J12: =SUM(tblUdgiftskategori_10[aug]) -> 200 | K12: =SUM(tblUdgiftskategori_10[sep]) -> 200 | L12: =SUM(tblUdgiftskategori_10[okt]) -> 650 | M12: =SUM(tblUdgiftskategori_10[nov]) -> 200 | N12: =SUM(tblUdgiftskategori_10[dec]) -> 200 | O12: =SUM(tblUdgiftskategori_10[år]) -> 4,200 | P12: =SUM(tblUdgiftskategori_15[gns.]) -> 0
B13: =LOWER(Budget!B86) -> opsparing | C13: =SUM(tblUdgiftskategori_09[jan]) -> 800 | D13: =SUM(tblUdgiftskategori_09[feb]) -> 800 | E13: =SUM(tblUdgiftskategori_09[mar]) -> 800 | F13: =SUM(tblUdgiftskategori_09[apr]) -> 800 | G13: =SUM(tblUdgiftskategori_09[maj]) -> 800 | H13: =SUM(tblUdgiftskategori_09[jun]) -> 500 | I13: =SUM(tblUdgiftskategori_09[jul]) -> 500 | J13: =SUM(tblUdgiftskategori_09[aug]) -> 500 | K13: =SUM(tblUdgiftskategori_09[sep]) -> 800 | L13: =SUM(tblUdgiftskategori_09[okt]) -> 800 | M13: =SUM(tblUdgiftskategori_09[nov]) -> 800 | N13: =SUM(tblUdgiftskategori_09[dec]) -> 800 | O13: =SUM(tblUdgiftskategori_09[år]) -> 8,700 | P13: =SUM(tblUdgiftskategori_15[gns.]) -> 0
B14: =LOWER(Budget!B79) -> velgørenhed | C14: =SUM(tblUdgiftskategori_08[jan]) -> 0 | D14: =SUM(tblUdgiftskategori_08[feb]) -> 100 | E14: =SUM(tblUdgiftskategori_08[mar]) -> 100 | F14: =SUM(tblUdgiftskategori_08[apr]) -> 100 | G14: =SUM(tblUdgiftskategori_08[maj]) -> 100 | H14: =SUM(tblUdgiftskategori_08[jun]) -> 100 | I14: =SUM(tblUdgiftskategori_08[jul]) -> 100 | J14: =SUM(tblUdgiftskategori_08[aug]) -> 100 | K14: =SUM(tblUdgiftskategori_08[sep]) -> 100 | L14: =SUM(tblUdgiftskategori_08[okt]) -> 100 | M14: =SUM(tblUdgiftskategori_08[nov]) -> 100 | N14: =SUM(tblUdgiftskategori_08[dec]) -> 100 | O14: =SUM(tblUdgiftskategori_08[år]) -> 1,100 | P14: =SUM(tblUdgiftskategori_15[gns.]) -> 0
B15: =LOWER(Budget!B72) -> uddannelse | C15: =SUM(tblUdgiftskategori_07[jan]) -> 0 | D15: =SUM(tblUdgiftskategori_07[feb]) -> 0 | E15: =SUM(tblUdgiftskategori_07[mar]) -> 625 | F15: =SUM(tblUdgiftskategori_07[apr]) -> 0 | G15: =SUM(tblUdgiftskategori_07[maj]) -> 0 | H15: =SUM(tblUdgiftskategori_07[jun]) -> 0 | I15: =SUM(tblUdgiftskategori_07[jul]) -> 0 | J15: =SUM(tblUdgiftskategori_07[aug]) -> 0 | K15: =SUM(tblUdgiftskategori_07[sep]) -> 625 | L15: =SUM(tblUdgiftskategori_07[okt]) -> 0 | M15: =SUM(tblUdgiftskategori_07[nov]) -> 0 | N15: =SUM(tblUdgiftskategori_07[dec]) -> 0 | O15: =SUM(tblUdgiftskategori_07[år]) -> 1,250 | P15: =SUM(tblUdgiftskategori_15[gns.]) -> 0
B16: =LOWER(Budget!B65) -> forsikring | C16: =SUM(tblUdgiftskategori_06[jan]) -> 975 | D16: =SUM(tblUdgiftskategori_06[feb]) -> 975 | E16: =SUM(tblUdgiftskategori_06[mar]) -> 975 | F16: =SUM(tblUdgiftskategori_06[apr]) -> 975 | G16: =SUM(tblUdgiftskategori_06[maj]) -> 975 | H16: =SUM(tblUdgiftskategori_06[jun]) -> 975 | I16: =SUM(tblUdgiftskategori_06[jul]) -> 975 | J16: =SUM(tblUdgiftskategori_06[aug]) -> 975 | K16: =SUM(tblUdgiftskategori_06[sep]) -> 975 | L16: =SUM(tblUdgiftskategori_06[okt]) -> 975 | M16: =SUM(tblUdgiftskategori_06[nov]) -> 975 | N16: =SUM(tblUdgiftskategori_06[dec]) -> 975 | O16: =SUM(tblUdgiftskategori_06[år]) -> 11,700 | P16: =SUM(tblUdgiftskategori_15[gns.]) -> 0
B17: =LOWER(Budget!B58) -> sundhed | C17: =SUM(tblUdgiftskategori_05[jan]) -> 25 | D17: =SUM(tblUdgiftskategori_05[feb]) -> 60 | E17: =SUM(tblUdgiftskategori_05[mar]) -> 175 | F17: =SUM(tblUdgiftskategori_05[apr]) -> 25 | G17: =SUM(tblUdgiftskategori_05[maj]) -> 60 | H17: =SUM(tblUdgiftskategori_05[jun]) -> 60 | I17: =SUM(tblUdgiftskategori_05[jul]) -> 60 | J17: =SUM(tblUdgiftskategori_05[aug]) -> 25 | K17: =SUM(tblUdgiftskategori_05[sep]) -> 175 | L17: =SUM(tblUdgiftskategori_05[okt]) -> 60 | M17: =SUM(tblUdgiftskategori_05[nov]) -> 25 | N17: =SUM(tblUdgiftskategori_05[dec]) -> 25 | O17: =SUM(tblUdgiftskategori_05[år]) -> 775 | P17: =SUM(tblUdgiftskategori_15[gns.]) -> 0
B18: =LOWER(Budget!B49) -> transport | C18: =SUM(tblUdgiftskategori_04[jan]) -> 1,110 | D18: =SUM(tblUdgiftskategori_04[feb]) -> 1,025 | E18: =SUM(tblUdgiftskategori_04[mar]) -> 925 | F18: =SUM(tblUdgiftskategori_04[apr]) -> 1,025 | G18: =SUM(tblUdgiftskategori_04[maj]) -> 1,325 | H18: =SUM(tblUdgiftskategori_04[jun]) -> 1,200 | I18: =SUM(tblUdgiftskategori_04[jul]) -> 1,100 | J18: =SUM(tblUdgiftskategori_04[aug]) -> 1,200 | K18: =SUM(tblUdgiftskategori_04[sep]) -> 1,150 | L18: =SUM(tblUdgiftskategori_04[okt]) -> 1,025 | M18: =SUM(tblUdgiftskategori_04[nov]) -> 925 | N18: =SUM(tblUdgiftskategori_04[dec]) -> 925 | O18: =SUM(tblUdgiftskategori_04[år]) -> 12,935 | P18: =SUM(tblUdgiftskategori_15[gns.]) -> 0
B19: =LOWER(Budget!B40) -> børn | C19: =SUM(tblUdgiftskategori_03[jan]) -> 2,373 | D19: =SUM(tblUdgiftskategori_03[feb]) -> 500 | E19: =SUM(tblUdgiftskategori_03[mar]) -> 350 | F19: =SUM(tblUdgiftskategori_03[apr]) -> 250 | G19: =SUM(tblUdgiftskategori_03[maj]) -> 350 | H19: =SUM(tblUdgiftskategori_03[jun]) -> 450 | I19: =SUM(tblUdgiftskategori_03[jul]) -> 200 | J19: =SUM(tblUdgiftskategori_03[aug]) -> 545 | K19: =SUM(tblUdgiftskategori_03[sep]) -> 350 | L19: =SUM(tblUdgiftskategori_03[okt]) -> 350 | M19: =SUM(tblUdgiftskategori_03[nov]) -> 250 | N19: =SUM(tblUdgiftskategori_03[dec]) -> 350 | O19: =SUM(tblUdgiftskategori_03[år]) -> 6,318 | P19: =SUM(tblUdgiftskategori_15[gns.]) -> 0
B20: =LOWER(Budget!B30) -> dagligt forbrug | C20: =SUM(tblUdgiftskategori_02[jan]) -> 795 | D20: =SUM(tblUdgiftskategori_02[feb]) -> 375 | E20: =SUM(tblUdgiftskategori_02[mar]) -> 550 | F20: =SUM(tblUdgiftskategori_02[apr]) -> 825 | G20: =SUM(tblUdgiftskategori_02[maj]) -> 500 | H20: =SUM(tblUdgiftskategori_02[jun]) -> 450 | I20: =SUM(tblUdgiftskategori_02[jul]) -> 875 | J20: =SUM(tblUdgiftskategori_02[aug]) -> 475 | K20: =SUM(tblUdgiftskategori_02[sep]) -> 400 | L20: =SUM(tblUdgiftskategori_02[okt]) -> 825 | M20: =SUM(tblUdgiftskategori_02[nov]) -> 575 | N20: =SUM(tblUdgiftskategori_02[dec]) -> 375 | O20: =SUM(tblUdgiftskategori_02[år]) -> 7,020 | P20: =SUM(tblUdgiftskategori_15[gns.]) -> 0
B21: =LOWER(Budget!B21) -> hjem | C21: =SUM(tblUdgiftskategori_01[jan]) -> 1,208 | D21: =SUM(tblUdgiftskategori_01[feb]) -> 1,208 | E21: =SUM(tblUdgiftskategori_01[mar]) -> 1,233 | F21: =SUM(tblUdgiftskategori_01[apr]) -> 1,208 | G21: =SUM(tblUdgiftskategori_01[maj]) -> 1,158 | H21: =SUM(tblUdgiftskategori_01[jun]) -> 1,183 | I21: =SUM(tblUdgiftskategori_01[jul]) -> 1,283 | J21: =SUM(tblUdgiftskategori_01[aug]) -> 1,333 | K21: =SUM(tblUdgiftskategori_01[sep]) -> 1,208 | L21: =SUM(tblUdgiftskategori_01[okt]) -> 1,158 | M21: =SUM(tblUdgiftskategori_01[nov]) -> 1,208 | N21: =SUM(tblUdgiftskategori_01[dec]) -> 1,208 | O21: =SUM(tblUdgiftskategori_01[år]) -> 14,596 | P21: =SUM(tblUdgiftskategori_15[gns.]) -> 0
B26: Akkumuleret pengestrøm | C26: =SUM(Budget!$C$8:C$8) -> -3,714 | D26: =SUM(Budget!$C$8:D$8) -> 76 | E26: =SUM(Budget!$C$8:E$8) -> -1,857 | F26: =SUM(Budget!$C$8:F$8) -> -3,670 | G26: =SUM(Budget!$C$8:G$8) -> -138 | H26: =SUM(Budget!$C$8:H$8) -> -3,731 | I26: =SUM(Budget!$C$8:I$8) -> -7,974 | J26: =SUM(Budget!$C$8:J$8) -> -6,827 | K26: =SUM(Budget!$C$8:K$8) -> -8,810 | L26: =SUM(Budget!$C$8:L$8) -> -10,753 | M26: =SUM(Budget!$C$8:M$8) -> -6,811 | N26: =SUM(Budget!$C$8:N$8) -> -7,769 | O26: =SUM(Budget!$C$8:O$8) -> -15,538
B28: Positiv pengestrøm for året | C28: =IF(Budget!C$8<0,NA(),IF(period+2<>COLUMN(Budget!C$8),NA(),Budget!C$8)) ->  | D28: =IF(Budget!D$8<0,NA(),IF(period+2<>COLUMN(Budget!D$8),NA(),Budget!D$8)) ->  | E28: =IF(Budget!E$8<0,NA(),IF(period+2<>COLUMN(Budget!E$8),NA(),Budget!E$8)) ->  | F28: =IF(Budget!F$8<0,NA(),IF(period+2<>COLUMN(Budget!F$8),NA(),Budget!F$8)) ->  | G28: =IF(Budget!G$8<0,NA(),IF(period+2<>COLUMN(Budget!G$8),NA(),Budget!G$8)) ->  | H28: =IF(Budget!H$8<0,NA(),IF(period+2<>COLUMN(Budget!H$8),NA(),Budget!H$8)) ->  | I28: =IF(Budget!I$8<0,NA(),IF(period+2<>COLUMN(Budget!I$8),NA(),Budget!I$8)) ->  | J28: =IF(Budget!J$8<0,NA(),IF(period+2<>COLUMN(Budget!J$8),NA(),Budget!J$8)) ->  | K28: =IF(Budget!K$8<0,NA(),IF(period+2<>COLUMN(Budget!K$8),NA(),Budget!K$8)) ->  | L28: =IF(Budget!L$8<0,NA(),IF(period+2<>COLUMN(Budget!L$8),NA(),Budget!L$8)) ->  | M28: =IF(Budget!M$8<0,NA(),IF(period+2<>COLUMN(Budget!M$8),NA(),Budget!M$8)) ->  | N28: =IF(Budget!N$8<0,NA(),IF(period+2<>COLUMN(Budget!N$8),NA(),Budget!N$8)) ->  | O28: =IF(Budget!O$8<0,NA(),IF(period+2<>COLUMN(Budget!O$8),NA(),Budget!O$8)) -> 
B29: Negativ pengestrøm for året | C29: =IF(Budget!C$8>=0,NA(),IF(period+2<>COLUMN(Budget!C$8),NA(),Budget!C$8)) ->  | D29: =IF(Budget!D$8>=0,NA(),IF(period+2<>COLUMN(Budget!D$8),NA(),Budget!D$8)) ->  | E29: =IF(Budget!E$8>=0,NA(),IF(period+2<>COLUMN(Budget!E$8),NA(),Budget!E$8)) -> -1,933 | F29: =IF(Budget!F$8>=0,NA(),IF(period+2<>COLUMN(Budget!F$8),NA(),Budget!F$8)) ->  | G29: =IF(Budget!G$8>=0,NA(),IF(period+2<>COLUMN(Budget!G$8),NA(),Budget!G$8)) ->  | H29: =IF(Budget!H$8>=0,NA(),IF(period+2<>COLUMN(Budget!H$8),NA(),Budget!H$8)) ->  | I29: =IF(Budget!I$8>=0,NA(),IF(period+2<>COLUMN(Budget!I$8),NA(),Budget!I$8)) ->  | J29: =IF(Budget!J$8>=0,NA(),IF(period+2<>COLUMN(Budget!J$8),NA(),Budget!J$8)) ->  | K29: =IF(Budget!K$8>=0,NA(),IF(period+2<>COLUMN(Budget!K$8),NA(),Budget!K$8)) ->  | L29: =IF(Budget!L$8>=0,NA(),IF(period+2<>COLUMN(Budget!L$8),NA(),Budget!L$8)) ->  | M29: =IF(Budget!M$8>=0,NA(),IF(period+2<>COLUMN(Budget!M$8),NA(),Budget!M$8)) ->  | N29: =IF(Budget!N$8>=0,NA(),IF(period+2<>COLUMN(Budget!N$8),NA(),Budget!N$8)) ->  | O29: =IF(Budget!O$8>=0,NA(),IF(period+2<>COLUMN(Budget!O$8),NA(),Budget!O$8)) -> 
B37: =LOWER(vis_lang_periode) -> marts
B38: ="Indkomst for "&vis_lang_periode -> Indkomst for marts | C38: =INDEX(Budget!$C$6:$P$6,,C4) -> kr. 4,000
B39: ="Udgifter for "&vis_lang_periode&": "&TEXT(INDEX(Budget!$C$7:$P$7,,period),"kr. #.##0") -> Udgifter for marts: kr. 5.933 | C39: =INDEX(Budget!$C$7:$P$7,,C4) -> kr. 5,933
B40: ="Pengestrøm for "&vis_lang_periode -> Pengestrøm for marts | C40: =ABS(INDEX(Budget!$C$8:$P$8,,C4)) -> kr. 1,933 | D40: =REPT("-",INDEX(Budget!$C$8:$P$8,,C4)<0) -> -
